fUST/lending_fUST_20240808
["ID","MTS","AMOUNT","RATE_DAILY","PERIOD"]
[334441900,1723102244316,-500.0,0.00027397,7]
[334441901,1723102244326,-151.0,0.00027397,7]
[334441902,1723102244337,-500.0,0.00027397,7]
[334441903,1723102244348,-500.0,0.00027397,7]
[334441904,1723102244357,-500.0,0.00027397,7]
[334441905,1723102244366,-500.0,0.00027397,7]
[334441906,1723102244375,-500.0,0.00027397,7]
[334441907,1723102244385,-500.0,0.00027397,7]
[334441908,1723102244396,-500.0,0.00027397,7]
[334441909,1723102244405,-500.0,0.00027397,7]
[334441910,1723102244415,-500.0,0.00027397,7]
[334441911,1723102244424,-685.51,0.00027397,7]
[334441912,1723102244434,-1273.08,0.00027397,7]
[334441913,1723102244443,-500.0,0.00027397,7]
[334441914,1723102244453,-813.43,0.00027397,7]
[334441915,1723102244462,-693.74,0.00027397,7]
[334441916,1723102244472,-500.0,0.00027397,7]
[334441917,1723102244481,-500.0,0.00027397,7]
[334441918,1723102244490,-500.0,0.00027397,7]
[334441919,1723102244500,-500.0,0.00027397,7]
[334441920,1723102244511,-500.0,0.00027397,7]
[334441921,1723102244520,-500.0,0.00027397,7]
[334441922,1723102244529,-901.96,0.00027397,7]
[334441923,1723102244540,-500.0,0.00027397,7]
[334441924,1723102244549,-500.0,0.00027397,7]
[334441925,1723102244559,-500.0,0.00027397,7]
[334441926,1723102244568,-802.66,0.00027397,7]
[334441927,1723102244578,-154.191438,0.00027397,7]
[334441928,1723102244588,-502.01832693,0.00027397,7]
[334441929,1723102244597,-500.0,0.00027397,7]
[334441930,1723102244606,-1186.71,0.00027397,7]
[334441931,1723102244615,-500.0,0.00027397,7]
[334441932,1723102244625,-1403.55,0.00027397,7]
[334441933,1723102244634,-501.74504768,0.00027397,7]
[334441934,1723102244651,-151.0,0.00027397,7]
[334441935,1723102244660,-151.0,0.00027397,7]
[334441936,1723102244669,-500.0,0.00027397,7]
[334441937,1723102244679,-500.0,0.00027397,7]
[334441938,1723102244688,-500.90804881,0.00027397,7]
[334441939,1723102244697,-500.0,0.00027397,7]
[334441940,1723102244706,-500.0,0.00027397,7]
[334441941,1723102244716,-500.0,0.00027397,7]
[334441942,1723102244725,-500.0,0.00027397,7]
[334441943,1723102244735,-501.14527399,0.00027397,7]
[334441944,1723102244744,-500.0,0.00027397,7]
[334441945,1723102244754,-578.62639394,0.00027397,7]
[334441946,1723102244763,-574.14,0.00027397,7]
[334441947,1723102244773,-500.0,0.00027397,7]
[334441948,1723102244782,-1003.15,0.00027397,7]
[334441949,1723102244792,-500.0,0.00027397,7]
[334441950,1723102244801,-966.67,0.00027397,7]
[334441951,1723102244811,-500.0,0.00027397,7]
[334441952,1723102244822,-500.0,0.00027397,7]
[334441953,1723102244834,-522.43271615,0.00027397,7]
[334441954,1723102244844,-500.0,0.00027397,7]
[334441955,1723102244853,-179.15255214,0.00027397,7]
[334441956,1723102244862,-500.0,0.00027397,7]
[334441957,1723102244872,-500.0,0.00027397,7]
[334441958,1723102244881,-544.27,0.00027397,7]
[334441959,1723102244892,-500.0,0.00027397,7]
[334441960,1723102244905,-500.0,0.00027397,7]
[334441961,1723102244915,-151.0,0.00027397,7]
[334441962,1723102244924,-151.0,0.00027397,7]
[334441963,1723102244933,-1372.84,0.00027397,7]
[334441964,1723102244944,-1316.03,0.00027397,7]
[334441965,1723102244954,-500.0,0.00027397,7]
[334441966,1723102244965,-501.18315458,0.00027397,7]
[334441967,1723102244975,-996.39,0.00027397,7]
[334441968,1723102244985,-500.0,0.00027397,7]
[334441969,1723102244995,-500.0,0.00027397,7]
[334441970,1723102245005,-500.0,0.00027397,7]
[334441971,1723102245014,-151.0,0.00027397,7]
[334441972,1723102245024,-151.0,0.00027397,7]
[334441973,1723102245033,-500.0,0.00027397,7]
[334441974,1723102245043,-1316.32,0.00027397,7]
[334441975,1723102245052,-500.0,0.00027397,7]
[334441976,1723102245062,-502.31775371,0.00027397,7]
[334441977,1723102245071,-500.0,0.00027397,7]
[334441978,1723102245081,-500.0,0.00027397,7]
[334441979,1723102245091,-500.0,0.00027397,7]
[334441980,1723102245101,-500.0,0.00027397,7]
[334441981,1723102245110,-500.0,0.00027397,7]
[334441982,1723102245120,-500.0,0.00027397,7]
[334441983,1723102245129,-500.0,0.00027397,7]
[334441984,1723102245139,-500.0,0.00027397,7]
[334441985,1723102245152,-619.15,0.00027397,7]
[334441986,1723102245323,-500.0,0.00027397,7]
[334441987,1723102245333,-763.4,0.00027397,7]
[334441988,1723102245343,-500.0,0.00027397,7]
[334441989,1723102245353,-500.0,0.00027397,7]
[334441990,1723102245365,-504.19965801,0.00027397,7]
[334441991,1723102245375,-179.26720444,0.00027397,7]
[334441992,1723102245384,-500.68214296,0.00027397,7]
[334441993,1723102245398,-500.0,0.00027397,7]
[334441994,1723102245409,-500.0,0.00027397,7]
[334441995,1723102245422,-500.0,0.00027397,7]
[334441996,1723102245434,-500.0,0.00027397,7]
[334441997,1723102245445,-500.0,0.00027397,7]
[334441998,1723102245455,-500.0,0.00027397,7]
[334441999,1723102245465,-497.90841346,0.00027397,7]
[334442000,1723102245477,-500.0,0.00027397,7]
[334442001,1723102245486,-500.0,0.00027397,7]
[334442002,1723102245497,-500.0,0.00027397,7]
[334442003,1723102245507,-500.0,0.00027397,7]
[334442004,1723102245517,-878.39,0.00027397,7]
[334442005,1723102245526,-500.0,0.00027397,7]
[334442006,1723102245535,-500.0,0.00027397,7]
[334442007,1723102245547,-500.0,0.00027397,7]
[334442008,1723102245556,-500.0,0.00027397,7]
[334442009,1723102245566,-500.0,0.00027397,7]
[334442010,1723102245577,-500.0,0.00027397,7]
[334442011,1723102245586,-500.0,0.00027397,7]
[334442012,1723102245595,-500.0,0.00027397,7]
[334442014,1723102245606,-500.0,0.00027397,7]
[334442015,1723102245616,-1025.01,0.00027397,7]
[334442016,1723102245626,-500.0,0.00027397,7]
[334442017,1723102245636,-446.91376089,0.00027397,7]
[334442018,1723102245647,-500.0,0.00027397,7]
[334442019,1723102245656,-500.0,0.00027397,7]
[334442020,1723102245666,-500.0,0.00027397,7]
[334442022,1723102245675,-500.0,0.00027397,7]
[334442024,1723102245685,-500.0,0.00027397,7]
[334442026,1723102245695,-792.593635,0.00027397,7]
[334442028,1723102245704,-792.593635,0.00027397,7]
[334442030,1723102245714,-509.5262953,0.00027397,7]
[334442032,1723102245723,-500.0,0.00027397,7]
[334442033,1723102245733,-500.0,0.00027397,7]
[334442034,1723102245742,-500.0,0.00027397,7]
[334442035,1723102245752,-500.0,0.00027397,7]
[334442036,1723102245761,-500.0,0.00027397,7]
[334442037,1723102245772,-792.593635,0.00027397,7]
[334442038,1723102245781,-792.593635,0.00027397,7]
[334442039,1723102245790,-500.0,0.00027397,7]
[334442040,1723102245800,-500.0,0.00027397,7]
[334442041,1723102245810,-533.6,0.00027397,7]
[334442042,1723102245821,-500.0,0.00027397,7]
[334442043,1723102245835,-522.35,0.00027397,7]
[334442044,1723102245845,-151.0,0.00027397,7]
[334442045,1723102245854,-500.0,0.00027397,7]
[334442046,1723102245866,-247.224032,0.00027397,7]
[334442047,1723102245876,-500.0,0.00027397,7]
[334442048,1723102245885,-372.09716578,0.00027397,7]
[334442049,1723102245898,-500.0,0.00027397,7]
[334442050,1723102245910,-1376.71,0.00027397,7]
[334442051,1723102245920,-642.99,0.00027397,7]
[334442052,1723102245929,-528.9,0.00027397,7]
[334442053,1723102245939,-528.9,0.00027397,7]
[334442054,1723102245949,-528.9,0.00027397,7]
[334442055,1723102245959,-528.9,0.00027397,7]
[334442056,1723102245970,-500.0,0.00027397,7]
[334442057,1723102245980,-528.9,0.00027397,7]
[334442058,1723102245990,-528.9,0.00027397,7]
[334442059,1723102246000,-528.9,0.00027397,7]
[334442060,1723102246009,-1400.21,0.00027397,7]
[334442061,1723102246019,-528.9,0.00027397,7]
[334442062,1723102246029,-528.9,0.00027397,7]
[334442063,1723102246039,-501.56616701,0.00027397,7]
[334442064,1723102246049,-528.9,0.00027397,7]
[334442065,1723102246059,-528.9,0.00027397,7]
[334442066,1723102246068,-528.9,0.00027397,7]
[334442067,1723102246078,-500.0,0.00027397,7]
[334442068,1723102246088,-528.9,0.00027397,7]
[334442069,1723102246098,-528.9,0.00027397,7]
[334442070,1723102246108,-528.9,0.00027397,7]
[334442071,1723102246119,-528.9,0.00027397,7]
[334442072,1723102246129,-500.0,0.00027397,7]
[334442073,1723102246139,-528.9,0.00027397,7]
[334442074,1723102246152,-528.9,0.00027397,7]
[334442075,1723102246162,-528.9,0.00027397,7]
[334442076,1723102246172,-528.9,0.00027397,7]
[334442078,1723102246182,-528.9,0.00027397,7]
[334442079,1723102246192,-528.9,0.00027397,7]
[334442080,1723102246202,-212.412977,0.00027397,7]
[334442081,1723102246211,-534.55733801,0.00027397,7]
[334442082,1723102246221,-212.412977,0.00027397,7]
[334442083,1723102246230,-528.9,0.00027397,7]
[334442084,1723102246240,-529.08,0.00027397,7]
[334442085,1723102246249,-503.26537494,0.00027397,7]
[334442086,1723102246258,-151.0,0.00027397,7]
[334442087,1723102246268,-500.0,0.00027397,7]
[334442088,1723102246278,-500.0,0.00027397,7]
[334442089,1723102246289,-212.412977,0.00027397,7]
[334442090,1723102246299,-500.0,0.00027397,7]
[334442091,1723102246308,-212.412977,0.00027397,7]
[334442092,1723102246320,-2091.39,0.00027397,7]
[334442093,1723102246329,-500.0,0.00027397,7]
[334442094,1723102246339,-500.0,0.00027397,7]
[334442095,1723102246349,-151.0,0.00027397,7]
[334442096,1723102246359,-517.25,0.00027397,7]
[334442097,1723102246369,-4723.92,0.00027397,7]
[334442098,1723102246379,-4723.92,0.00027397,7]
[334442099,1723102246390,-4723.92,0.00027397,7]
[334442100,1723102246400,-501.50656828,0.00027397,7]
[334442101,1723102246409,-4723.92,0.00027397,7]
[334442102,1723102246419,-4723.92,0.00027397,7]
[334442103,1723102246430,-4723.92,0.00027397,7]
[334442104,1723102246441,-4723.92,0.00027397,7]
[334442105,1723102246452,-4723.92,0.00027397,7]
[334442106,1723102246462,-4723.92,0.00027397,7]
[334442107,1723102246472,-4723.92,0.00027397,7]
[334442108,1723102246482,-4723.92,0.00027397,7]
[334442109,1723102246491,-611.05,0.00027397,7]
[334442110,1723102246501,-500.0,0.00027397,7]
[334442112,1723102246511,-4723.92,0.00027397,7]
[334442113,1723102246520,-151.0,0.00027397,7]
[334442114,1723102246530,-4723.92,0.00027397,7]
[334442115,1723102246539,-4723.92,0.00027397,7]
[334442116,1723102246549,-4723.92,0.00027397,7]
[334442117,1723102246559,-4723.92,0.00027397,7]
[334442118,1723102246569,-452.05686867,0.00027397,7]
[334442119,1723102246803,-934.399098,0.00027137,3]
[334442120,1723102247209,-639.55,0.00027137,3]
[334442122,1723102465856,161.458695,0.00014247,2]
[334442149,1723102857436,55007.0,0.00027,120]
[334443310,1723103429599,154.69833824,0.00014999,2]
[334443319,1723103432111,-714.73489578,0.00015708,2]
[334443321,1723103432124,-609.06863018,0.00015708,2]
[334443323,1723103432136,-3086.09785834,0.00015708,2]
[334443325,1723103432146,-845.13961548,0.00015712,2]
[334443327,1723103432156,-277.93171132,0.00016532,2]
[334443329,1723103432166,-2184.57295706,0.00019102,2]
[334443429,1723103440228,-3054.38328473,0.00019102,2]
[334443430,1723103440238,-300.0,0.00019153,2]
[334443431,1723103440249,-7002.81077238,0.00019167,2]
[334443432,1723103440259,-1731.85173861,0.00019167,2]
[334443433,1723103440268,-714.73489578,0.00019177,2]
[334443434,1723103440279,-2125.48864548,0.00019256,2]
[334443435,1723103440289,-210.54479745,0.00019256,2]
[334443436,1723103440299,-665.40284724,0.00019451,2]
[334443437,1723103440310,-815.95147603,0.00019451,2]
[334443438,1723103440319,-246.26039153,0.00019451,2]
[334443439,1723103440331,-663.67437082,0.00019477,2]
[334443440,1723103440340,-1091.99358002,0.00019477,2]
[334443441,1723103440350,-1174.0824722,0.00022075,2]
[334443442,1723103440359,-162.391648,0.00023035,2]
[334443443,1723103440368,-162.391648,0.00023635,2]
[334443444,1723103440378,-162.391648,0.00024235,2]
[334443445,1723103440387,-200.0,0.00026027,2]
[334443446,1723103440397,-153.0,0.00026658,2]
[334443447,1723103440406,-153.0,0.00026962,2]
[334443448,1723103440415,-153.0,0.00026962,2]
[334443449,1723103440425,-153.0,0.00026962,2]
[334443450,1723103440435,-153.0,0.00026962,2]
[334443451,1723103440444,-153.0,0.00026962,2]
[334443452,1723103440453,-153.0,0.00026962,2]
[334443453,1723103440463,-153.0,0.00026962,2]
[334443454,1723103440473,-153.0,0.00026962,2]
[334443455,1723103440483,-153.0,0.00026962,2]
[334443456,1723103440492,-153.0,0.00026962,2]
[334443457,1723103440501,-454.3180478,0.00026986,2]
[334443458,1723103440511,-1000.0,0.00027,27]
[334443459,1723103440520,-350.99427229,0.00027,2]
[334443460,1723103440531,-1626.04191113,0.00027,2]
[334443461,1723103440540,-335.0,0.00027,2]
[334443462,1723103440549,-516.42638736,0.00027,2]
[334443463,1723103440559,-283.89776594,0.00027296,2]
[334443464,1723103440568,-1943.23542804,0.00027297,2]
[334443465,1723103440579,-22749.2689127,0.00027377,3]
[334443466,1723103440588,-375.86,0.00027377,3]
[334443467,1723103440598,-13533.72,0.00027377,3]
[334443468,1723103440607,-500.0,0.00027386,2]
[334443469,1723103440617,-500.0,0.00027386,2]
[334443470,1723103440626,-207.58571923,0.00027386,2]
[334443471,1723103440635,-500.0,0.00027386,2]
[334443472,1723103440645,-500.0,0.00027386,2]
[334443473,1723103440654,-500.0,0.00027386,2]
[334443474,1723103440663,-56760.38302016,0.00027387,11]
[334443475,1723103440673,-11374.6344564,0.00027387,3]
[334443476,1723103440682,-89722.72881487,0.00027387,3]
[334443479,1723103440916,-649.452219,0.00027387,3]
[334443481,1723103440929,-12898.78238714,0.00027387,3]
[334443568,1723103465847,161.458695,0.00014247,2]
[334443572,1723103773582,4251.06671301,0.00014247,2]
[334443931,1723103817163,-1000.0,0.00033261,120]
[334443932,1723103817190,-159.72,0.00033261,120]
[334443933,1723103817215,-100789.0,0.00033261,36]
[334443934,1723103817241,-67599.77117634,0.00033261,60]
[334443935,1723103817267,-110000.0,0.00033261,60]
[334443936,1723103817294,-124877.95140456,0.00033261,60]
[334443937,1723103817320,-418.0,0.00033261,120]
[334443938,1723103817348,-20751.95306633,0.00033261,120]
[334443939,1723103817375,-500.0,0.00033261,30]
[334443940,1723103817401,-500.0,0.00033261,35]
[334443941,1723103817427,-500.0,0.00033261,40]
[334443942,1723103817452,-501.09745128,0.00033261,45]
[334443943,1723103817478,-72402.50690149,0.00033261,120]
[334443944,1723103822313,-1981.637,0.00029449,120]
[334443945,1723103822341,-1981.637,0.00029449,120]
[334443946,1723103822366,-1981.638,0.00029449,120]
[334443947,1723103822390,-1981.637,0.00029449,120]
[334443948,1723103822415,-1981.637,0.00029449,120]
[334443949,1723103822452,-757350.5605,0.00029621,30]
[334443950,1723103822490,-8867.57545778,0.0003,120]
[334443951,1723103822517,-20000.0,0.0003,120]
[334443952,1723103822542,-151.0,0.0003,120]
[334443953,1723103822569,-151.0,0.0003,120]
[334443954,1723103822616,-890.23,0.00030466,120]
[334443955,1723103822640,-888.0,0.0003063,120]
[334443956,1723103822708,-385.2751,0.00031621,30]
[334443957,1723103822764,-151.0,0.00032493,120]
[334443958,1723103822793,-520.46,0.000326,31]
[334443959,1723103822821,-520.46,0.000326,31]
[334443960,1723103822850,-520.46,0.000326,31]
[334443961,1723103822880,-520.46,0.000326,31]
[334443962,1723103822911,-520.46,0.000326,31]
[334443963,1723103822940,-520.46,0.000326,31]
[334443964,1723103822968,-520.46,0.000326,31]
[334443965,1723103822995,-520.46,0.000326,31]
[334443966,1723103823025,-520.46,0.000326,31]
[334443967,1723103823053,-520.46,0.000326,31]
[334443968,1723103823081,-520.46,0.000326,31]
[334443969,1723103823110,-520.46,0.000326,31]
[334443970,1723103823139,-520.46,0.000326,31]
[334443971,1723103823168,-520.46,0.000326,31]
[334443972,1723103823197,-520.46,0.000326,31]
[334443973,1723103823227,-520.46,0.000326,31]
[334443974,1723103823256,-520.46,0.000326,31]
[334443975,1723103823289,-520.46,0.000326,31]
[334443976,1723103823326,-520.46,0.000326,31]
[334443977,1723103823357,-520.46,0.000326,31]
[334443978,1723103823393,-7401.95790744,0.00032754,36]
[334443979,1723103823425,-1000.0,0.00032876,30]
[334443980,1723103823451,-1000.0,0.00032876,30]
[334443981,1723103823476,-624.47924554,0.00032876,30]
[334443982,1723103823509,-20000.0,0.00033,120]
[334443983,1723103823534,-612.1755536,0.00033076,42]
[334443984,1723103823560,-200.0,0.00033131,120]
[334443985,1723103823607,-920.87819728,0.00033793,120]
[334443986,1723103823635,-5000.0,0.00034,34]
[334443987,1723103823661,-250.0,0.00034,120]
[334443988,1723103823688,-520.46,0.00034,31]
[334443989,1723103823715,-520.46,0.00034,31]
[334443990,1723103823742,-520.46,0.00034,31]
[334443991,1723103823772,-520.46,0.00034,31]
[334443992,1723103823800,-520.46,0.00034,31]
[334443993,1723103823830,-520.46,0.00034,31]
[334443994,1723103823859,-520.46,0.00034,31]
[334443995,1723103823887,-520.46,0.00034,31]
[334443996,1723103823917,-520.46,0.00034,31]
[334443997,1723103823946,-520.46,0.00034,31]
[334443998,1723103823976,-520.46,0.00034,31]
[334443999,1723103824006,-520.46,0.00034,31]
[334444000,1723103824037,-520.46,0.00034,31]
[334444001,1723103824067,-520.46,0.00034,31]
[334444002,1723103824097,-520.46,0.00034,31]
[334444003,1723103824126,-520.46,0.00034,31]
[334444004,1723103824155,-520.46,0.00034,31]
[334444005,1723103824184,-520.46,0.00034,31]
[334444006,1723103824213,-520.46,0.00034,31]
[334444007,1723103824242,-520.46,0.00034,31]
[334444008,1723103824271,-200.0,0.00034002,120]
[334444009,1723103824297,-151.0,0.00034274,120]
[334444010,1723103824326,-9056.82922833,0.000345,30]
[334444011,1723103824352,-34021.45281003,0.0003484,120]
[334444014,1723103837871,-15792.49309851,0.00033261,120]
[334444015,1723103851399,-137227.10496619,0.0003484,120]
[334444016,1723103851428,-151.0,0.00034986,120]
[334444017,1723103851455,-5000.0,0.00035,35]
[334444018,1723103851481,-200.0,0.00035264,120]
[334444019,1723103851508,-520.46,0.000354,31]
[334444020,1723103851540,-520.46,0.000354,31]
[334444021,1723103851567,-520.46,0.000354,31]
[334444022,1723103851593,-520.46,0.000354,31]
[334444023,1723103851620,-520.46,0.000354,31]
[334444024,1723103851646,-520.46,0.000354,31]
[334444025,1723103851674,-520.46,0.000354,31]
[334444026,1723103851701,-520.46,0.000354,31]
[334444027,1723103851728,-520.46,0.000354,31]
[334444028,1723103851756,-520.46,0.000354,31]
[334444029,1723103851785,-520.46,0.000354,31]
[334444030,1723103851812,-520.46,0.000354,31]
[334444031,1723103851844,-520.46,0.000354,31]
[334444032,1723103851872,-520.46,0.000354,31]
[334444033,1723103851904,-520.46,0.000354,31]
[334444034,1723103851933,-520.46,0.000354,31]
[334444035,1723103851961,-520.46,0.000354,31]
[334444036,1723103851990,-520.46,0.000354,31]
[334444037,1723103852017,-520.46,0.000354,31]
[334444038,1723103852049,-520.46,0.000354,31]
[334444039,1723103852074,-501.1,0.000355,120]
[334444040,1723103852100,-1927.994323,0.00035616,120]
[334444041,1723103852124,-1000.0,0.000358,30]
[334444042,1723103852151,-5000.0,0.00036,36]
[334444043,1723103852178,-1006.0,0.00036,120]
[334444044,1723103852204,-250.0,0.00036,120]
[334444045,1723103852231,-271.04122811,0.000368,30]
[334444046,1723103852256,-1000.0,0.000368,80]
[334444047,1723103852284,-259.95073952,0.000368,30]
[334444048,1723103852308,-331.10419252,0.000368,30]
[334444049,1723103852339,-520.46,0.000368,31]
[334444050,1723103852365,-520.46,0.000368,31]
[334444051,1723103852393,-520.46,0.000368,31]
[334444052,1723103852420,-520.46,0.000368,31]
[334444053,1723103852449,-520.46,0.000368,31]
[334444054,1723103852476,-520.46,0.000368,31]
[334444055,1723103852502,-520.46,0.000368,31]
[334444056,1723103852533,-520.46,0.000368,31]
[334444057,1723103852566,-520.46,0.000368,31]
[334444058,1723103852593,-520.46,0.000368,31]
[334444059,1723103852620,-520.46,0.000368,31]
[334444060,1723103852648,-520.46,0.000368,31]
[334444061,1723103852675,-520.46,0.000368,31]
[334444062,1723103852702,-520.46,0.000368,31]
[334444063,1723103852730,-520.46,0.000368,31]
[334444064,1723103852757,-520.46,0.000368,31]
[334444065,1723103852788,-520.46,0.000368,31]
[334444066,1723103852814,-520.46,0.000368,31]
[334444067,1723103852842,-520.46,0.000368,31]
[334444068,1723103852870,-520.46,0.000368,31]
[334444069,1723103852900,-5000.0,0.00037,37]
[334444070,1723103852925,-1000.0,0.00037,120]
[334444071,1723103852950,-599.3324163,0.00037,120]
[334444072,1723103852977,-1124.09857269,0.0003707,31]
[334444073,1723103853003,-11674.95953238,0.0003726,31]
[334444074,1723103853033,-151.0,0.00037479,120]
[334444075,1723103853060,-160.92548576,0.00037733,120]
[334444076,1723103853088,-1000.0,0.000378,90]
[334444077,1723103853115,-1500.0,0.000379,120]
[334444078,1723103853144,-5000.0,0.00038,38]
[334444079,1723103853173,-3000.0,0.00038,42]
[334444080,1723103853202,-250.0,0.00038,120]
[334444081,1723103853229,-16868.0,0.00038,120]
[334444082,1723103853256,-16868.0,0.00038,120]
[334444083,1723103853286,-16868.0,0.00038,120]
[334444084,1723103853312,-4555.54405645,0.00038,100]
[334444085,1723103853341,-559.82483105,0.00038,30]
[334444086,1723103853368,-5334.81706295,0.00038,30]
[334444087,1723103853394,-2767.95,0.00038,120]
[334444088,1723103853422,-3000.0,0.00038101,42]
[334444089,1723103853453,-520.46,0.000382,31]
[334444090,1723103853482,-520.46,0.000382,31]
[334444091,1723103853512,-520.46,0.000382,31]
[334444092,1723103853540,-520.46,0.000382,31]
[334444093,1723103853572,-520.46,0.000382,31]
[334444094,1723103853602,-520.46,0.000382,31]
[334444095,1723103853631,-520.46,0.000382,31]
[334444096,1723103853663,-520.46,0.000382,31]
[334444097,1723103853694,-520.46,0.000382,31]
[334444098,1723103853727,-520.46,0.000382,31]
[334444099,1723103853758,-520.46,0.000382,31]
[334444100,1723103853793,-520.46,0.000382,31]
[334444101,1723103853825,-520.46,0.000382,31]
[334444102,1723103853858,-520.46,0.000382,31]
[334444103,1723103853891,-520.46,0.000382,31]
[334444104,1723103853925,-520.46,0.000382,31]
[334444105,1723103853960,-520.46,0.000382,31]
[334444106,1723103853993,-520.46,0.000382,31]
[334444107,1723103854027,-520.46,0.000382,31]
[334444108,1723103854059,-520.46,0.000382,31]
[334444109,1723103854089,-3000.0,0.00038203,42]
[334444110,1723103854118,-16358.0,0.000383,45]
[334444111,1723103854147,-3000.0,0.00038304,42]
[334444112,1723103854178,-3000.0,0.00038406,42]
[334444113,1723103854207,-3000.0,0.00038507,42]
[334444114,1723103854390,-151.0,0.00038548,120]
[334444115,1723103854421,-3000.0,0.00038609,42]
[334444116,1723103854450,-3000.0,0.0003871,42]
[334444117,1723103854478,-3000.0,0.00038812,42]
[334444118,1723103854509,-1103.07407446,0.000389,30]
[334444119,1723103854541,-3000.0,0.00038913,42]
[334444120,1723103854574,-5000.0,0.00039,39]
[334444121,1723103854601,-46096.91604733,0.00039,120]
[334444122,1723103854630,-12868.0,0.00039,120]
[334444123,1723103854658,-12868.0,0.00039,120]
[334444124,1723103854688,-12868.0,0.00039,120]
[334444125,1723103854715,-3000.0,0.00039014,42]
[334444126,1723103854742,-3000.0,0.00039116,42]
[334444127,1723103854770,-166.8,0.000392,30]
[334444128,1723103854799,-3000.0,0.00039217,42]
[334444129,1723103854826,-3000.0,0.00039319,42]
[334444130,1723103854859,-3000.0,0.0003942,42]
[334444131,1723103854887,-3000.0,0.00039522,42]
[334444132,1723103854915,-3000.0,0.00039623,42]
[334444133,1723103854942,-3000.0,0.00039725,42]
[334444134,1723103854970,-44985.22645991,0.000398,30]
[334444135,1723103854997,-3000.0,0.00039826,42]
[334444136,1723103855025,-152379.88871798,0.000399,120]
[334444137,1723103855052,-3000.0,0.00039928,42]
[334444138,1723103855078,-151.0,0.00039973,120]
[334444139,1723103855106,-5000.0,0.0004,30]
[334444140,1723103855133,-406.23363027,0.0004,120]
[334444141,1723103855161,-2148.864421,0.0004,120]
[334444142,1723103855187,-396.24755588,0.0004,120]
[334444143,1723103855214,-1011.0,0.0004,120]
[334444144,1723103855240,-200.0,0.0004,120]
[334444145,1723103855266,-1031.86,0.0004,60]
[334444146,1723103855294,-12868.0,0.0004,120]
[334444147,1723103855320,-12868.0,0.0004,120]
[334444148,1723103855349,-15301.13612549,0.0004,30]
[334444149,1723103855375,-22625.44716241,0.0004,30]
[334444150,1723103855401,-1303.52447307,0.0004,120]
[334444151,1723103855435,-766.92573488,0.0004,35]
[334444152,1723103855461,-197.0,0.0004,120]
[334444153,1723103855486,-1926.469999,0.0004,120]
[334444154,1723103855514,-3000.0,0.00040029,42]
[334444155,1723103855540,-3000.0,0.0004013,42]
[334444156,1723103855567,-9551.10960685,0.000402,120]
[334444157,1723103855592,-3000.0,0.00040232,42]
[334444158,1723103855618,-3000.0,0.00040333,42]
[334444159,1723103855644,-3000.0,0.00040435,42]